Cogmind - Beta 9.3 @@@ ROGUE MODE // 2020.01.01 @ 01:52:33 // Winter2019/RPGLIKE Player: Judas Result: Destroyed by S-27 Virus with Autogun Performance ------------- Evolutions (3) 1500 Regions Visited (5) 1000 Robots Destroyed (41) 205 Value Destroyed (1268) 1268 Prototype IDs (2) 40 Alien Tech Used (0) 0 Bonus (962) 962 TOTAL SCORE: 4975 Bonus ------- Pacifist 200 High Alert Combat Kills 62 Entered Garrisons 200 Used RIF Installer 500 Cogmind --------- Core Integrity 0/700 Matter 84/400 Energy 265/265 System Corruption 0% Temperature Cool (18) Movement Hovering (51) Location -7/Garrison Parts ------- > --- POWER (1) -------- Improved Ion Engine > --- PROPULSION (2) --- Aerolev Unit Gravmag System > --- UTILITY (3) ------ Disposable Heat Sink Advanced Signal Interpreter Hardened Medium Armor Plating > --- WEAPON (3) ------- Heavy Assault Rifle Autogun Autogun > --- INVENTORY (3) ---- Protomatter-15 Light Assault Rifle Improved Grenade Launcher Peak State ------------ > --- POWER ------------ Improved Ion Engine > --- PROPULSION ------- Aerolev Unit Gravmag System > --- UTILITY ---------- Disposable Heat Sink Advanced Signal Interpreter Hardened Medium Armor Plating > --- WEAPON ----------- Heavy Assault Rifle Autogun Autogun > --- INVENTORY -------- Protomatter Light Assault Rifle Improved Grenade Launcher [Rating: 24] Favorites ----------- Power Light Ion Engine Engine Light Ion Engine Propulsion Wheel Wheel Wheel Hover Unit Gravmag System Utility Disposable Heat Sink Device Disposable Heat Sink Processor Advanced Signal Interpreter Protection Hardened Medium Armor Plating Weapon Autogun Ballistic Gun Autogun Build | -11 -10 -9 -8 -7 -7 ------- Run | Scr Mat Mat Mat Fac Gar Slots Evolved 5 | 2 . . 2 1 . Power . | . . . . . . Propulsion 1 | 1 . . . . . Utility 2 | . . . 1 1 . Weapon 2 | 1 . . 1 . . Parts Attached 17 | 5 3 1 7 1 . Power 2 | 1 . . 1 . . Engine 2 | 1 . . 1 . . Core . | . . . . . . Reactor . | . . . . . . Propulsion 6 | 2 . 1 3 . . Treads . | . . . . . . Leg . | . . . . . . Wheel 3 | 2 . 1 . . . Hover 3 | . . . 3 . . Flight . | . . . . . . Utility 3 | . 1 . 1 1 . Device 1 | . 1 . . . . Storage . | . . . . . . Processor 1 | . . . . 1 . Hackware . | . . . . . . Protection 1 | . . . 1 . . Artifact . | . . . . . . Weapon 6 | 2 2 . 2 . . Energy Gun . | . . . . . . Energy Cannon . | . . . . . . Ballistic Gun 6 | 2 2 . 2 . . Ballistic Cannon . | . . . . . . Launcher . | . . . . . . Special Weapon . | . . . . . . Impact Weapon . | . . . . . . Slashing Weapon . | . . . . . . Piercing Weapon . | . . . . . . Special Melee Weapon . | . . . . . . Unidentified Prototypes . | . . . . . . Parts Lost 1 | . . 1 . . . Power . | . . . . . . Propulsion 1 | . . 1 . . . Utility . | . . . . . . Weapon . | . . . . . . Highest Loss Streak 1 | . . 1 . . . Average Slot Usage (%) 98 | . 98 97 98 . 100 Engine 14 | . 16 16 12 . 11 Wheel 21 | . 33 30 1 . . Hover 7 | . . . 25 . 22 Device 14 | . 14 16 12 . 11 Processor 1 | . . . . . 11 Protection 2 | . . . 7 . 11 Ballistic Gun 33 | . 33 33 36 . 33 Naked Turns . | . . . . . . Heaviest Build 25 | 5 10 10 25 25 25 Greatest Support 32 | 20 20 20 32 32 32 Greatest Overweight (x) 3 | . . 3 . . . Average Overweight (x) . | . . . . . . Largest Inventory Capacity 3 | 2 2 3 3 3 3 Average Capacity 2 | 1 2 2 3 3 3 Most Carried 3 | . 2 3 3 3 3 Average Carried 2 | . 1 2 2 3 3 Final Capacity 3 | 2 2 3 3 3 3 Final Carried 3 | . 2 3 3 3 3 Class Distribution -------------------- 70% | Mutant 18% | Gunner 10% | Scout Dominant Class ---------------- Mutant | -10/Materials Mutant | -9/Materials Gunner | -8/Materials Gunner | -7/Factory Scout | -7/Garrison Resources | -11 -10 -9 -8 -7 -7 ----------- Run | Scr Mat Mat Mat Fac Gar Matter Collected 1053 | 153 127 527 246 . . Remotely . | . . . . . . Salvage Created 1224 | . . 887 304 . 33 Parts 93 | . . 75 15 . 3 Haulers Intercepted 1 | . . 1 . . . Recyclers Shooed . | . . . . . . Parts Field Recycled . | . . . . . . Retrieved Matter . | . . . . . . Parts Self-Destructed . | . . . . . . Prevented . | . . . . . . Kills | -11 -10 -9 -8 -7 -7 ------- Run | Scr Mat Mat Mat Fac Gar Combat Hostiles Destroyed 31 | . . 25 4 . 2 Guns 31 | . . 25 4 . 2 Classes Destroyed 10 | . . 8 1 . 1 Worker 3 | . . 3 . . . Builder 2 | . . 2 . . . Hauler 1 | . . 1 . . . Recycler 2 | . . 1 1 . . Operator 1 | . . . 1 . . Watcher 1 | . . 1 . . . Swarmer 9 | . . 8 . . 1 Grunt 15 | . . 14 1 . . Sentry 6 | . . 3 3 . . Demolisher 1 | . . . . . 1 Best Kill Streak 9 | . . 9 2 . 1 Combat Bots Only 7 | . . 7 2 . 1 Max Kills in Single Turn 2 | . . 2 1 . 1 Gunslinging . | . . . . . . Exploded . | . . . . . . Melee . | . . . . . . Uniques/NPCs Destroyed . | . . . . . . Combat | -11 -10 -9 -8 -7 -7 -------- Run | Scr Mat Mat Mat Fac Gar Damage Taken 2104 | . 22 1028 205 . 849 Core 1682 | . 17 828 162 . 675 Absorbed by Shields 87 | . . . . . 87 Redirected to Core 1396 | . 17 645 146 . 588 Core Remaining (%) 98 | 100 97 100 95 . . Volleys Fired 101 | . . 66 20 . 15 Largest 3 | . . 2 3 . 3 Hottest 69 | . . 46 69 . 69 Shots Fired 234 | . . 132 57 . 45 Gun 234 | . . 132 57 . 45 Cannon . | . . . . . . Launcher . | . . . . . . Special . | . . . . . . Kinetic 234 | . . 132 57 . 45 Thermal . | . . . . . . Explosive . | . . . . . . Electromagnetic . | . . . . . . Robot Hit Streak 20 | . . 20 14 . 10 Robot Miss Streak 7 | . . 3 5 . 7 Penetration Max . | . . . . . . Secondary Targets 4 | . . 4 . . . Max Gunslinging Chain 1 | . . 1 . . . Shots Hit Robots 146 | . . 89 32 . 25 Core Hits 59 | . . 43 10 . 6 Critical Hits 3 | . . 3 . . . Critical Kills . | . . . . . . Critical Parts Destroyed 3 | . . 3 . . . Melee Attacks . | . . . . . . Impact . | . . . . . . Slashing . | . . . . . . Piercing . | . . . . . . Sneak Attacks . | . . . . . . Combat Hostiles . | . . . . . . Follow-up Attacks . | . . . . . . Damage Inflicted 2306 | . . 1440 531 . 335 Guns 2292 | . . 1426 531 . 335 Cannons . | . . . . . . Explosions . | . . . . . . Melee . | . . . . . . Ramming 14 | . . 14 . . . Kinetic 2292 | . . 1426 531 . 335 Thermal . | . . . . . . Explosive . | . . . . . . Electromagnetic . | . . . . . . Impact . | . . . . . . Slashing . | . . . . . . Piercing . | . . . . . . Highest Corruption . | . . . . . . Average Corruption . | . . . . . . Corruption Purged . | . . . . . . Overload Shots . | . . . . . . Overflow Damage . | . . . . . . Projectiles . | . . . . . . Explosions . | . . . . . . Melee . | . . . . . . Knockbacks . | . . . . . . Impact . | . . . . . . Kinetic . | . . . . . . Secondary . | . . . . . . Self-Inflicted Damage 7 | . . 7 . . . Shots . | . . . . . . Rammed 1 | . . 1 . . . Targets Rammed 1 | . . 1 . . . Kicked . | . . . . . . Crushed . | . . . . . . Highest Temperature 190 | . . 37 190 . 180 Average Temperature 40 | . . 12 70 . 79 Received Heat Transfer 549 | . . 408 99 . 42 Siege Activations . | . . . . . . Robots Corrupted . | . . . . . . Combat Hostiles . | . . . . . . Parts Fried . | . . . . . . Impact Corruptions . | . . . . . . Robots Melted . | . . . . . . Combat Hostiles . | . . . . . . Parts Melted . | . . . . . . Heat Transferred . | . . . . . . Parts Sabotaged . | . . . . . . Parts Stolen . | . . . . . . Parts Stripped . | . . . . . . Power Chain Reactions . | . . . . . . Missiles Intercepted . | . . . . . . Alert | -11 -10 -9 -8 -7 -7 ------- Run | Scr Mat Mat Mat Fac Gar Peak Influence 535 | . 9 535 337 51 243 Average Influence 212 | . 7 282 233 51 176 Maximum Alert Level 2 | . . 2 1 . 1 Low Security (%) 44 | 100 100 31 21 100 55 Level 1 43 | . . 44 78 . 44 Level 2 12 | . . 24 . . . Level 3 . | . . . . . . Level 4 . | . . . . . . Level 5 . | . . . . . . High Security . | . . . . . . Max Security . | . . . . . . Squads Dispatched 4 | . . 4 . . . Investigation 1 | . . 1 . . . Extermination . | . . . . . . Reinforcement 3 | . . 3 . . . Assault . | . . . . . . Garrison . | . . . . . . Intercept . | . . . . . . Construction Impeded . | . . . . . . Haulers Reinforced . | . . . . . . Stealth | -11 -10 -9 -8 -7 -7 --------- Run | Scr Mat Mat Mat Fac Gar Distress Signals 1 | . . 1 . . . Communications Jammed . | . . . . . . Distress Signals . | . . . . . . Times Spotted 54 | . . 36 5 . 13 Peak Tracking Total 12 | . . 7 1 . 12 Tactical Retreats 1 | . . 1 . . . Traps | -11 -10 -9 -8 -7 -7 ------- Run | Scr Mat Mat Mat Fac Gar Traps Triggered 4 | . 1 1 . . 2 Indirectly . | . . . . . . Trap Hack Attempts . | . . . . . . Triggered . | . . . . . . Disarmed . | . . . . . . Reprogrammed . | . . . . . . Reused . | . . . . . . Traps Extracted . | . . . . . . Installed . | . . . . . . Triggered . | . . . . . . Machines | -11 -10 -9 -8 -7 -7 ---------- Run | Scr Mat Mat Mat Fac Gar Machines Disabled 4 | . . 2 1 . 1 Max in Single Turn 1 | . . 1 1 . 1 Garrison Relay 1 | . . . . . 1 Machines Sabotaged . | . . . . . . Garrisons Compromised . | . . . . . . Overloaded Fab Kills . | . . . . . . Fab Network Shutdowns . | . . . . . . Hacking | -11 -10 -9 -8 -7 -7 --------- Run | Scr Mat Mat Mat Fac Gar Machines Accessed 7 | . 4 1 1 1 . Terminals 6 | . 4 1 1 . . Fabricators . | . . . . . . Repair Stations . | . . . . . . Recycling Units . | . . . . . . Scanalyzers . | . . . . . . Garrison Access 1 | . . . . 1 . Total Hacks 17 | . 8 2 5 2 . Successful 13 | . 5 2 5 1 . Failed 4 | . 3 . . 1 . Catastrophic . | . . . . . . Database Lockouts . | . . . . . . Manual 8 | . 6 1 1 . . Terminals 15 | . 8 2 5 . . Fabricators . | . . . . . . Repair Stations . | . . . . . . Recycling Units . | . . . . . . Scanalyzers . | . . . . . . Garrison Access 2 | . . . . 2 . Terminal Hacks 7 | . 2 1 4 . . Record 1 | . 1 . . . . Prototype ID Bank 1 | . . 1 . . . Branch Access Points 1 | . . . 1 . . Alert Level 2 | . 1 . 1 . . Unreport Threat 2 | . . . 2 . . Fabricator Hacks . | . . . . . . Repair Station Hacks . | . . . . . . Recycling Unit Hacks . | . . . . . . Scanalyzer . | . . . . . . Garrison Access Hacks 1 | . . . . 1 . Unlock Access 1 | . . . . 1 . Unauthorized Hacks 12 | . 8 2 2 . . Terminals 5 | . 3 1 1 . . Botnet 5 | . 3 1 1 . . Fabricators . | . . . . . . Repair Stations . | . . . . . . Recycling Units . | . . . . . . Scanalyzers . | . . . . . . Garrison Access . | . . . . . . Data Cores Recovered . | . . . . . . Used . | . . . . . . Hacking Detections 2 | . 1 1 . . . Full Trace Events . | . . . . . . Feedback Events . | . . . . . . Feedback Blocked . | . . . . . . Robot Schematics Acquired . | . . . . . . Robots Built . | . . . . . . Matter . | . . . . . . Time . | . . . . . . Total Robot Build Rating . | . . . . . . Part Schematics Acquired . | . . . . . . Parts Built . | . . . . . . Matter . | . . . . . . Time . | . . . . . . Total Part Build Rating . | . . . . . . Parts Repaired . | . . . . . . Time . | . . . . . . Parts Recycled . | . . . . . . Recycled Matter . | . . . . . . Retrieved Matter . | . . . . . . Retrieved Components . | . . . . . . Parts Scanalyzed . | . . . . . . Part Schematics Acquired . | . . . . . . Parts Damaged . | . . . . . . Bothacking | -11 -10 -9 -8 -7 -7 ------------ Run | Scr Mat Mat Mat Fac Gar Used RIF Installer 1 | . . . . . 1 Robots Hacked . | . . . . . . Non-combat . | . . . . . . Combat . | . . . . . . Robot Hacks Applied . | . . . . . . Relay Couplers Released 2 | . . . . . 2 Machine Destruction 2 | . . . . . 2 Robots Rewired . | . . . . . . Allies Hacked . | . . . . . . Hacks Repelled . | . . . . . . Allies | -11 -10 -9 -8 -7 -7 -------- Run | Scr Mat Mat Mat Fac Gar Total Allies . | . . . . . . Largest Group . | . . . . . . Highest-Rated Group . | . . . . . . Highest-Rated Ally . | . . . . . . Total Orders . | . . . . . . Ally Attacks . | . . . . . . Total Damage . | . . . . . . Kills . | . . . . . . Allies Corrupted . | . . . . . . Allies Melted . | . . . . . . Intel | -11 -10 -9 -8 -7 -7 ------- Run | Scr Mat Mat Mat Fac Gar Robot Analysis Total . | . . . . . . Derelict Logs Recovered . | . . . . . . Drone Launches . | . . . . . . Drone Recoveries . | . . . . . . Exploration | -11 -10 -9 -8 -7 -7 ------------- Run | Scr Mat Mat Mat Fac Gar Turns Passed 1111 | 28 162 562 237 9 113 Spaces Moved 989 | 27 195 366 263 15 123 Core 10 | 1 . 9 . . . Treads . | . . . . . . Legs . | . . . . . . Wheels 588 | 26 195 357 10 . . Hover 391 | . . . 253 15 123 Flight . | . . . . . . Fastest Speed 50 | 50 80 80 51 51 51 Average Speed 69 | 78 80 82 52 51 51 Slowest Speed 200 | 80 80 200 80 51 51 Overloaded Moves . | . . . . . . Propulsion Burnouts . | . . . . . . Robots Hopped . | . . . . . . Cave-ins Triggered 1 | . . . . . 1 Exploration Rate (%) 23 | 3 41 34 34 1 26 Regions Visited 5 Branch Regions . Pre-discovered Areas . | . . . . . . Known Exits Taken 1 | . . . . 1 . Unknown Exits Taken 4 | 1 1 1 1 . . Scrap Searched . | . . . . . . Spaces Dug . | . . . . . . Terrain Destroyed . | . . . . . . Melee . | . . . . . . Projectile . | . . . . . . AOE . | . . . . . . Actions | -11 -10 -9 -8 -7 -7 --------- Run | Scr Mat Mat Mat Fac Gar Total 1232 | 31 199 518 324 15 145 Wait 63 | . . 41 22 . . Move 983 | 26 194 365 262 14 122 Hop . | . . . . . . Pick Up 4 | . 2 1 1 . . Fast Attach 13 | 5 1 1 5 1 . Attach . | . . . . . . Detach . | . . . . . . Swap 4 | . 2 . 2 . . Drop 6 | . . . 6 . . Fire 101 | . . 66 20 . 15 Melee . | . . . . . . Ram 1 | . . 1 . . . Kick . | . . . . . . Crush . | . . . . . . Escape Stasis 8 | . . . . . 8 Rewire . | . . . . . . Trap . | . . . . . . Miscellaneous 49 | . . 43 6 . . Route ------- -11/Scrapyard -10/Materials (discovered 2 exits: *Mat / [*Min]) -9/Materials (discovered 2 exits: *Mat / [*Min]) -8/Materials -7/Factory -7/Garrison History --------- Turn | Location | Event 10 | -11/Scrapyard | Upgraded with Propulsion slot (x1) 10 | -11/Scrapyard | Upgraded with Weapon slot (x1) 18 | -11/Scrapyard | Discovered new exit (range 15) 29 | -11/Scrapyard | Entered Materials 62 | -10/Materials | Discovered new exit (range 6) 180 | -10/Materials | Discovered new exit (range 10) 191 | -10/Materials | Entered another Materials area 193 | -9/Materials | Reached level 2 310 | -9/Materials | Build established: Mutant 391 | -9/Materials | Destroyed 7 combat bots 434 | -9/Materials | Discovered new exit (range 16) 447 | -9/Materials | Reached level 3 613 | -9/Materials | Discovered new exit (range 14) 662 | -9/Materials | Reached level 4 665 | -9/Materials | Core integrity fell below 50% 700 | -9/Materials | Destroyed 7 combat bots 753 | -9/Materials | Entered another Materials area 755 | -8/Materials | Reached level 5 778 | -8/Materials | Upgraded with Weapon slot (x1) 845 | -8/Materials | Upgraded with Utility slot (x1) 940 | -8/Materials | Discovered new exit (range 16) 990 | -8/Materials | Entered Factory 992 | -7/Factory | Reached level 6 996 | -7/Factory | Upgraded with Utility slot (x1) 999 | -7/Factory | Identified exit to Garrison 999 | -7/Factory | Entered Garrison 1001 | -7/Garrison | Reached level 7 1002 | -7/Garrison | Installed Relay Interface Framework 1014 | -7/Garrison | Triggered checkpoint 1056 | -7/Garrison | Crushed by falling debris 1057 | -7/Garrison | Core integrity fell below 50% 1062 | -7/Garrison | Garrison Relay disabled 1090 | -7/Garrison | Triggered checkpoint 1094 | -7/Garrison | Triggered checkpoint 1106 | -7/Garrison | Core integrity fell below 20% 1106 | -7/Garrison | Triggered checkpoint 1112 | -7/Garrison | Destroyed by S-27 Virus with Autogun Last Messages --------------- 01015_ Field strength at 65. 01016_ Field strength at 58. 01025_ The unstable cave ceiling collapses. 01037_ D-53 Grenadier destroyed. 01038_ The unstable cave ceiling collapses. 01056_ Crushed by falling debris. 01058_ The unstable cave ceiling collapses. 01062_ Garrison Relay disabled. 01062_ Relay Coupler [Brawler] tumbles out of relay unit. 01062_ Relay Coupler [NC] tumbles out of relay unit. 01067_ The unstable cave ceiling collapses. 01090_ Beams of light sweep through the air. An alarm sounds. 01099_ Triggered Stasis Trap. 01099_ A bubble of rippling energy engulfs the area. 01099_ Field strength at 93. 01106_ S-27 Virus destroyed. 01108_ Field strength at 23. 01109_ Penetrated by Slug. 01109_ Field strength at 10. 01110_ Stasis field depleted. Map ----- +----------------------------------------------------+ | ?????????????????????????# #### ##### #????????? | | ?????????????????????????# + #????????? | | ?????###?????????????????#### #????????? | | ????? ????????????????????# ##########????????? | | ?????? ????????????????????# #?????????????????? | | ?????? ???????????????????# #?????????????????? | | ??????# ???????????????????# #?????????????????? | | ??????# ???????????????????# #?????????????????? | | ??????# ???????????????????# #?????????????????? | | ??????# ??????????????????# #?????????????????? | | ??????# ?######???????????# #?????????????????? | | ??????# ?# #???????????# #?????????????????? | | ??????# ## ######??????# #?????????????????? | | ??????# ######## #?????????????????? | | ??????# #?????????????????? | | ??????# #?????????????????? | | ??????# ## ## ###########?????????????????? | | ????### ## ## #???????????????????????????? | | ????# "???????????????????????????? | | ????# "???????????????????????????? | | ????# "?##????????????????????????? | | ????# "?s ????????????????????????? | | ????### ## ## #?# ????????????????????????? | | ??????# ## ##ss ###s########????????????????? | | ??????# =g=s s #????????????????? | | ??????# g @ #????????????????? | | ??????# #????????????????? | | ??????# ##""""############# #????????????????? | | ??????# ????????????????????? #????????????????? | | ??????# ????????????????????????????????????????? | | ??????# ????????????????????????????????????????? | | ??????# ?????????????????????????????????????????? | | ??????# ?????????????????????????????????????????? | | ??????#??????????????????????????????????????????? | | ?????????????????????????????????????????????????? | | ?????????????????????????????????????????????????? | | ?????????????????????????????????????????????????? | | ?????????????????????????????????????????????????? | | ?????????????????????????????????????????????????? | | ?????????????????????????????????????????????????? | | ?????????????????????????????????????????????????? | | ?????????????????????????????????????????????????? | | ?????????????????????????????????????????????????? | | ?????????????????????????????????????????????????? | | ?????????????????????????????????????????????????? | | ?????????????????????????????????????????????????? | | ?????????????????????????????????????????????????? | | ?????????????????????????????????????????????????? | | ?????????????????????????????????????????????????? | | ?????????????????????????????????????????????????? | +----------------------------------------------------+ Best States ------------- Heat Dissipation 31 Coolant Potential 50 Energy Generation 12 Energy Capacity 265 Matter Stores 300 Matter Capacity 400 Sight Range 20 Robot Scan Range 20 Terrain Scan Density 310 Armor Coverage 225 Evasion (%) 54 Item Schematics ----------------- None Robot Schematics ------------------ None Fabricated ------------ Nothing Alien Tech Used ----------------- None Achievements -------------- None Challenges ------------ None RPGLIKE | -11 -10 -9 -8 -7 -7 --------- Run | Scr Mat Mat Mat Fac Gar Levels Raised 6 | . . 3 1 1 1 XP Earned 12860 | 3000 100 4800 2160 1500 1300 XP Spent 10370 | 2310 . 975 3410 3675 . Upgrades 35 | 11 . 3 10 11 . Propulsion Slot 1 | 1 . . . . . Utility Slot 2 | . . . 1 1 . Weapon Slot 2 | 1 . . 1 . . Core Integrity 2 | . . 1 1 . . Heat Dissipation 1 | . . . 1 . . Matter Storage 2 | . . . 2 . . Mass Support 2 | . . . 2 . . Inventory Capacity 3 | 2 . 1 . . . Sight Range 4 | . . . . 4 . Sensor Range 10 | 4 . . . 6 . Terrain Scan Density 3 | 3 . . . . . KI Damage % 3 | . . 1 2 . . Protomatter Created 405 | . . 361 44 . . Integrity Restored 1078 | . . 946 132 . . Core 977 | . . 845 132 . . Parts 101 | . . 101 . . . Protomatter Decayed 30 | . . 30 . . . Game ------ Seed ModifiedSmartbombSheargun Manual? 0 Play Time 00:23:36 Cumulative 31.4 hours Start 2020.01.01 @ 01:26:15 End 2020.01.01 @ 01:52:33 Sessions 1 Manual Loads 0 Difficulty Rogue Special Mode Winter2019/RPGLIKE Game No. 58 Rogue 58 Adventurer 0 Explorer 0 Win Type - Total 0 Types 0/0/0/0/0/0/0 Lore% 24 Gallery% 29 Achievement% 24 Wizard Run 0 Options --------- ASCII 0 Keyboard 0 Movement Mouse Keybinds 0 Fullscreen 1 Font 18/SmallcapsGlow Map View 76x50 Tactical HUD 1 Map Filters NONE Filters NONE Steam 1 RUN: 04f5a397-ff41-4099-9008-ef1a64305b1d